Workbook

Sheet PFP
A1: PROPOSTA FINANCEIRA DO PROJETO | J1: CODIGO:
J2: PFP
A3: NOME DA CONSULTORA:
A5: PROJETO: | F5: CONTRATANTE: | J5: BASE: Setembro/2022
A6: Pontes em Cristalina/GO | F6: Codevasf (Sede)
A7: Base | B7: Cod1 | C7: Cod2 | D7: Categoria / Insumo | E7: Uni | F7: Qde | G7: CUD | H7: PU | I7: FatorK | J7: CT | K7: PT
A8: SICRO | B8: MO | C8: P0 | D8: Engenheiro Sênior (Coordenador) (P8061) | E8: mês | F8: ='CRO1_Ins-Pro'!D4 -> 4 | G8: 16848.3 | H8: =ROUND(I8*G8,2) -> 41268.23 | I8: =PFP2.1_FatorKa!J8 -> 2.4494 | J8: =ROUND(F8*G8,2) -> 67393.2 | K8: =ROUND(F8*H8,2) -> 165072.92
A9: SICRO | B9: MO | C9: P1 | D9: Engenheiro Sênior – Projetista Ponte (P8067) | E9: mês | F9: ='CRO1_Ins-Pro'!D5 -> 1.5 | G9: 14226.86 | H9: 34847.27 | I9: =PFP2.1_FatorKa!J9 -> 2.4494 | J9: 21340.29 | K9: 52270.91
A10: SICRO | B10: MO | C10: P2 | D10: Engenheiro Pleno – Hídrico/Hidrológico(P8066) | E10: mês | F10: ='CRO1_Ins-Pro'!D6 -> 1 | G10: 10864.39 | H10: 26611.24 | I10: =PFP2.1_FatorKa!J10 -> 2.4494 | J10: 10864.39 | K10: 26611.24
A11: SICRO | B11: MO | C11: P2 | D11: Engenheiro Pleno – Projetista Estrada (P8066) | E11: mês | F11: ='CRO1_Ins-Pro'!D7 -> 0.5 | G11: 10864.39 | H11: 26611.24 | I11: =PFP2.1_FatorKa!J11 -> 2.4494 | J11: 5432.2 | K11: 13305.62
A12: SICRO | B12: MO | C12: P2 | D12: Engenheiro Pleno - Ambiental (P8058) | E12: mês | F12: ='CRO1_Ins-Pro'!D8 -> 1 | G12: 10998.07 | H12: 26941.97 | I12: =PFP2.1_FatorKa!J12 -> 2.4497 | J12: 10998.07 | K12: 26941.97
A13: SICRO | B13: MO | C13: A1 | D13: Administrativo (Secretariado) (P8135) | E13: mês | F13: ='CRO1_Ins-Pro'!D9 -> 4 | G13: 2189.27 | H13: 5369.4 | I13: =PFP2.1_FatorKa!J13 -> 2.4526 | J13: 8757.08 | K13: 21477.6
A14: PROP | B14: DP | C14: V1 | D14: Diárias | E14: dia | F14: ='CRO1_Ins-Pro'!D10 -> 21 | G14: 160 | H14: 200.93 | I14: =PFP3_FatorKc!$E$19 -> 1.2558 | J14: 3360 | K14: 4219.53
A15: CODE | B15: LO | C15: V2 | D15: Pick-up Cab. Dupla 2.8 4x4 Diesel | E15: dia | F15: ='CRO1_Ins-Pro'!D11 -> 10 | G15: 196.18 | H15: 246.36 | I15: =PFP3_FatorKc!$E$19 -> 1.2558 | J15: 1961.8 | K15: 2463.6
A16: CODE | B16: EM | C16: M4 | D16: Relatório Final | E16: un | F16: ='CRO1_Ins-Pro'!D12 -> 1 | G16: 1478.8 | H16: 1857.08 | I16: =PFP3_FatorKc!$E$19 -> 1.2558 | J16: 1478.8 | K16: 1857.08
A17: CODE | B17: SG | C17: TP | D17: Total Serviços Topográficos | E17: un | F17: ='CRO1_Ins-Pro'!D13 -> 1 | G17: - | H17: =(PFP1.1_Topo_Lajes!G16)+(PFP1.1_Topo_Faz3Barras!G16) -> 38751.43 | I17: - | J17: - | K17: 38751.43
A18: CODE | B18: SG | C18: GT | D18: Total Serviços Geotécnicos | E18: un | F18: ='CRO1_Ins-Pro'!D14 -> 1 | G18: - | H18: =(PFP1.2_Geo_Lajes!G38)+(PFP1.2_Geo_Faz3Barras!G38) -> 187279.58 | I18: - | J18: - | K18: 187279.58
A19: TOTAL DOS CUSTOS DIRETOS | H19: =SUM(J8:J18) -> 131585.83
A20: TOTAL DOS ENCARGOS E DISPESAS DIVERSAS | H20: =H21-H19 -> 182634.64
A21: TOTAL DA PROPOSTA A PREÇO GLOBAL | H21: =SUM(K8:K16) -> 314220.47
A22: TOTAL DA PROPOSTA A PREÇO UNITÁRIO | H22: =SUM(K17:K18) -> 226031.01
A23: TOTAL DA PROPOSTA | H23: =H21+H22 -> 540251.48
A24: NOME DO INFORMANTE: | J24: QUALIFICAÇÃO
A26: ASSINATURA: | J26: DATA:
A28: OBSERVAÇÃO:
A29: Alocar os Insumos MO, com respectivo FatorK, dentro da categoria de vínculo contratual (com ou sem) de cada tipo de profissional
A30: Uni - unidade de medição do insumo;
A31: Qde - Quantidade do Insumo (não pode ocorrer alteração pela Licitante)
A32: CUD - Custo Unitário Direto do Insumo (sem encargos, taxas e impostos, valor não pode ser maior que o Orçado pela Codevasf)
A33: CT - Custo Total (sem encargos, taxas e impostos) - CT = Qde x CUD
A34: FatorK - Taxa de Ressarcimento de Despesas e Encargos (detalhar composição nas Planilhas "PFP2.1", "PFP2.2", "PFP3")
A35: PU - Preço Unitário do Insumo (incluído encargos, taxas e impostos) - PU = CUD x FatorK
A36: PT - Preço Total do Insumo (incluído encargos, taxas e impostos) - PT = Qde x PU
A37: P - Profissionais nível superior nas áreas de Engenharia, Química, Arquitetura, Agronomia e Veterinária, conforme disposições da Lei 4.950-A/66
A38: S - Profissionais de nível superior nas demais áreas de atuação, incluindo Arqueólogo, Biólogo, Geógrafo e Socioólogo
A39: T - Profissionais de nível médio técnico nas diversas áreas de atuação
A40: A - Profissionais de nível médio de apoio técnico-administrativo

Sheet Plan1 (hidden)

Sheet PFP1.1_Topo_Lajes
A1: SERVIÇOS TOPOGRÁFICOS | G1: CODIGO:
G2: PFP-1.1
A3: NOME DA EMPRESA:
A5: PROJETO: | E5: CONTRATANTE: | G5: =PFP!J5 -> BASE: Setembro/2022
A6: Ponte das Lajes/GO | E6: =PFP!F6 -> Codevasf (Sede)
A7: Cod. | B7: Base | C7: Insumos | D7: Uni | E7: Qde | F7: Preço Unitário (PU) | G7: Preço Total (PT)
A8: TP2 | B8: CODE | C8: Poligonal classe IIP | D8: km | E8: =E9 -> 4 | F8: 1984.3 | G8: =ROUND(F8*E8,2) -> 7937.2
A9: TP7 | B9: CODE | C9: Nivelamento Geométrico classe IN | D9: km | E9: =1.5+2.5 -> 4 | F9: 1304.85 | G9: 5219.4
A10: TP8 | B10: CODE | C10: Seções Transversais (Nivelamento IIN) | D10: km | E10: =((E9*1000)/20)*0.04 -> 8 | F10: 788.72 | G10: 6309.76
A11: TP19 | B11: CODE | C11: Pontos GPS de dupla frequencia (L1/L2) | D11: un | E11: 4 | F11: 981.07 | G11: 3924.28
A12: TP27 | B12: CODE | C12: Marco de Concreto (12x18x60cm) | D12: un | E12: =E11 -> 4 | F12: 53.89 | G12: 215.56
A13: TP28 | B13: CODE | C13: Barrote de Madeira (10x10x50cm | D13: un | E13: =E14*0.5 -> 100 | F13: 28.7 | G13: 2870
A14: TP29 | B14: CODE | C14: Piquete de Madeira (2x2x20cm) | D14: un | E14: =(E9*1000)/20 -> 200 | F14: 2.41 | G14: 482
A15: PD6 | B15: CODE | C15: Picada Manual | D15: km | E15: =E10 -> 8 | F15: 194.88 | G15: 1559.04
A16: TOTAL SERVIÇOS TOPOGRÁFICOS | G16: =SUM(G8:G15) -> 28517.24
A17: NOME DO INFORMANTE: | F17: QUALIFICAÇÃO:
A19: ASSINATURA: | F19: DATA:
A21: OBSERVAÇÃO:
A22: Uni - unidade de medição do insumo;
A23: Qde - Quantidade do Insumo (não pode ocorrer alteração pela Licitante)
A24: PU - Preço Unitário (composições padrão da Codevasf, já incluso o FatorK)
A25: PT - Preço Total (incluído encargos, taxas e impostos) - PT = Qde x PU

Sheet PFP1.2_Geo_Lajes
A1: SERVIÇOS GEOLÓGICOS/GEOTÉCNICOS | G1: CODIGO:
G2: PFP-1.2
A3: NOME DA EMPRESA:
A5: PROJETO: | E5: CONTRATANTE: | G5: =PFP!J5 -> BASE: Setembro/2022
A6: =PFP1.1_Topo_Lajes!A6 -> Ponte das Lajes/GO | E6: =PFP!F6 -> Codevasf (Sede)
A7: Cod. | B7: Base | C7: Insumos | D7: Uni | E7: Qde | F7: Preço Unitário (PU) | G7: Preço Total (PT)
A8: GT1.2 | B8: CODE | C8: Sondagem Rotativa: (Des)Mobilização | D8: un | E8: 1 | F8: 4110.46 | G8: =ROUND(F8*E8,2) -> 4110.46
A9: GT1.3.1 | B9: CODE | C9: Sondagem Rotativa: Ø N em rochas | D9: m | E9: 60 | F9: 712.73 | G9: 42763.8
A10: GT2.1 | B10: CODE | C10: Sondagem Percussão: (Des)Mobilização | D10: un | E10: 1 | F10: 878.94 | G10: 878.94
A11: GT2.2 | B11: CODE | C11: Sondagem Percursão: com SPT | D11: m | E11: 60 | F11: 77.08 | G11: 4624.8
A12: GT4 | B12: CODE | C12: Sondagem a Trado | D12: m | E12: 20 | F12: 64.94 | G12: 1298.8
A13: GT5 | B13: CODE | C13: Poços de Inspeção | D13: m | E13: 24 | F13: 190.68 | G13: 4576.32
A14: GT6.1.1 | B14: CODE | C14: Ensaio: Umidade Natural | D14: un | E14: 14 | F14: 84.49 | G14: 1182.86
A15: GT6.1.2 | B15: CODE | C15: Ensaio: Densidade Natural | D15: un | E15: 14 | F15: 84.49 | G15: 1182.86
A16: GT6.1.3 | B16: CODE | C16: Ensaio: Limite de Liquidez | D16: un | E16: 14 | F16: 117 | G16: 1638
A17: GT6.1.4 | B17: CODE | C17: Ensaio: Limite de Plasticidade | D17: un | E17: 14 | F17: 117 | G17: 1638
A18: G6.1.5 | B18: CODE | C18: Ensaio: Granulometria por Peneiramento | D18: un | E18: 14 | F18: 123.34 | G18: 1726.76
A19: GT6.1.6 | B19: CODE | C19: Ensaio: Granulometria por Sedimentação | D19: un | E19: 14 | F19: 382.79 | G19: 5359.06
A20: GT6.1.7 | B20: CODE | C20: Ensaio: Compactação Proctor Normal | D20: un | E20: 14 | F20: 160.41 | G20: 2245.74
A21: GT6.1.8 | B21: CODE | C21: Ensaio: Massa Especifica Real dos Grãos | D21: un | E21: 14 | F21: 104.27 | G21: 1459.78
A22: GT6.1.9 | B22: CODE | C22: Ensaio: Adensamento Oedométrico | D22: un | E22: 4 | F22: 283.57 | G22: 1134.28
A23: GT6.1.10 | B23: CODE | C23: Ensaio: Triaxial UU ñ consolidado ñ drenado | D23: un | E23: 4 | F23: 822.95 | G23: 3291.8
A24: GT6.1.11 | B24: CODE | C24: Ensaio: Triaxial CU consolidado ñ drenado | D24: un | E24: 4 | F24: 1129.48 | G24: 4517.92
A25: GT6.1.12.1 | B25: CODE | C25: Ensaio: Expansão colapsividade em anéis de adensamento | D25: un | E25: 8 | F25: 380.8 | G25: 3046.4
A26: GT6.1.12.2 | B26: CODE | C26: Ensaio: Expansão amostra indeformada com pressão de expansão | D26: un | E26: 8 | F26: 300.93 | G26: 2407.44
A27: GT6.1.13.1 | B27: CODE | C27: Ensaio: Dispersão Granulometria Comparativa | D27: un | E27: 8 | F27: 228.5 | G27: 1828
A28: GT6.1.13.2 | B28: CODE | C28: Ensaio: Dispersão Crumb Test | D28: un | E28: 8 | F28: 84.66 | G28: 677.28
A29: GT6.1.14 | B29: CODE | C29: Ensaio: Infiltração | D29: un | E29: 4 | F29: 228.5 | G29: 914
A30: GT6.1.15 | B30: CODE | C30: Ensaio: Perda de Água 5 estágios | D30: un | E30: 4 | F30: 361.18 | G30: 1444.72
A31: GT6.1.16.1 | B31: CODE | C31: Ensaio: Análise Quimica da Areia | D31: un | E31: 4 | F31: 459.82 | G31: 1839.28
A32: GT6.1.16.2 | B32: CODE | C32: Ensaio: Mineralogia da Areia | D32: un | E32: 4 | F32: 529.2 | G32: 2116.8
A33: GT6.1.17 | B33: CODE | C33: Ensaio: Análise Petrográfica/Mineralogia | D33: un | E33: 4 | F33: 529.2 | G33: 2116.8
A34: GT6.1.18 | B34: CODE | C34: Ensaio: Abrasão “LOS ANGELES” | D34: un | E34: 4 | F34: 414.19 | G34: 1656.76
A35: GT6.1.19 | B35: CODE | C35: Ensaio: Reatividade Potencial | D35: un | E35: 4 | F35: 1382.66 | G35: 5530.64
A36: GT6.1.20 | B36: CODE | C36: Ensaio: Permeabilidade Vertical de Carga Variável | D36: un | E36: 4 | F36: 649.14 | G36: 2596.56
A37: GT6.1.21 | B37: CODE | C37: Ensaio: Retirada de Amostra Indeformada | D37: un | E37: 8 | F37: 691.33 | G37: 5530.64
A38: TOTAL SERVIÇOS GEOTÉCNICOS | G38: =SUM(G8:G37) -> 115335.5
A39: NOME DO INFORMANTE: | F39: QUALIFICAÇÃO:
A41: ASSINATURA: | F41: DATA:
A43: LEGENDA:
A44: Uni - unidade de medição do insumo;
A45: Qde - Quantidade do Insumo (não pode ocorrer alteração pela Licitante)
A46: PU - Preço Unitário (composições padrão da Codevasf, já incluso o FatorK)
A47: PT - Preço Total (incluído encargos, taxas e impostos) - PT = Qde x PU

Sheet PFP1.1_Topo_Faz3Barras
A1: SERVIÇOS TOPOGRÁFICOS/CARTOGRÁFICOS | G1: CODIGO:
G2: PFP-1.1
A3: NOME DA EMPRESA:
A5: PROJETO: | E5: CONTRATANTE: | G5: =PFP!J5 -> BASE: Setembro/2022
A6: Ponte Fazenda Três Barras/GO | E6: =PFP!F6 -> Codevasf (Sede)
A7: Cod. | B7: Base | C7: Insumos | D7: Uni | E7: Qde | F7: Preço Unitário (PU) | G7: Preço Total (PT)
A8: =PFP1.1_Topo_Lajes!A8 -> TP2 | B8: CODE | C8: Poligonal classe IIP | D8: km | E8: =E9 -> 1 | F8: 1984.3 | G8: =ROUND(F8*E8,2) -> 1984.3
A9: =PFP1.1_Topo_Lajes!A9 -> TP7 | B9: CODE | C9: Nivelamento Geométrico classe IN | D9: km | E9: =0.5+0.5 -> 1 | F9: 1304.85 | G9: 1304.85
A10: =PFP1.1_Topo_Lajes!A10 -> TP8 | B10: CODE | C10: Seções Transversais (Nivelamento IIN) | D10: km | E10: =((E9*1000)/20)*0.04 -> 2 | F10: 788.72 | G10: 1577.44
A11: =PFP1.1_Topo_Lajes!A11 -> TP19 | B11: CODE | C11: Pontos GPS de dupla frequencia (L1/L2) | D11: un | E11: 4 | F11: 981.07 | G11: 3924.28
A12: =PFP1.1_Topo_Lajes!A12 -> TP27 | B12: CODE | C12: Marco de Concreto (12x18x60cm) | D12: un | E12: =E11 -> 4 | F12: 53.89 | G12: 215.56
A13: =PFP1.1_Topo_Lajes!A13 -> TP28 | B13: CODE | C13: Barrote de Madeira (10x10x50cm | D13: un | E13: =E14*0.5 -> 25 | F13: 28.7 | G13: 717.5
A14: =PFP1.1_Topo_Lajes!A14 -> TP29 | B14: CODE | C14: Piquete de Madeira (2x2x20cm) | D14: un | E14: =(E9*1000)/20 -> 50 | F14: 2.41 | G14: 120.5
A15: =PFP1.1_Topo_Lajes!A15 -> PD6 | B15: CODE | C15: Picada Manual | D15: km | E15: =E10 -> 2 | F15: 194.88 | G15: 389.76
A16: TOTAL SERVIÇOS TOPOGRÁFICOS | G16: =SUM(G8:G15) -> 10234.19
A17: NOME DO INFORMANTE: | F17: QUALIFICAÇÃO:
A19: ASSINATURA: | F19: DATA:
A21: OBSERVAÇÃO:
A22: Uni - unidade de medição do insumo;
A23: Qde - Quantidade do Insumo (não pode ocorrer alteração pela Licitante)
A24: PU - Preço Unitário (composições padrão da Codevasf, já incluso o FatorK)
A25: PT - Preço Total (incluído encargos, taxas e impostos) - PT = Qde x PU

Sheet PFP1.2_Geo_Faz3Barras
A1: SERVIÇOS GEOLÓGICOS/GEOTÉCNICOS | G1: CODIGO:
G2: PFP-1.2
A3: NOME DA EMPRESA:
A5: PROJETO: | E5: CONTRATANTE: | G5: =PFP!J5 -> BASE: Setembro/2022
A6: =PFP1.1_Topo_Faz3Barras!A6 -> Ponte Fazenda Três Barras/GO | E6: =PFP!F6 -> Codevasf (Sede)
A7: Cod. | B7: Base | C7: Insumos | D7: Uni | E7: Qde | F7: Preço Unitário (PU) | G7: Preço Total (PT)
A8: GT1.2 | B8: CODE | C8: Sondagem Rotativa: (Des)Mobilização | D8: un | E8: 0 | F8: 4110.46 | G8: =ROUND(F8*E8,2) -> 0
A9: GT1.3.1 | B9: CODE | C9: Sondagem Rotativa: Ø N em rochas | D9: m | E9: 60 | F9: 712.73 | G9: 42763.8
A10: GT2.1 | B10: CODE | C10: Sondagem Percussão: (Des)Mobilização | D10: un | E10: 0 | F10: 878.94 | G10: 0
A11: GT2.2 | B11: CODE | C11: Sondagem Percursão: com SPT | D11: m | E11: 60 | F11: 77.08 | G11: 4624.8
A12: GT4 | B12: CODE | C12: Sondagem a Trado | D12: m | E12: 0 | F12: 64.94 | G12: 0
A13: GT5 | B13: CODE | C13: Poços de Inspeção | D13: m | E13: 8 | F13: 190.68 | G13: 1525.44
A14: GT6.1.1 | B14: CODE | C14: Ensaio: Umidade Natural | D14: un | E14: 4 | F14: 84.49 | G14: 337.96
A15: GT6.1.2 | B15: CODE | C15: Ensaio: Densidade Natural | D15: un | E15: 4 | F15: 84.49 | G15: 337.96
A16: GT6.1.3 | B16: CODE | C16: Ensaio: Limite de Liquidez | D16: un | E16: 4 | F16: 117 | G16: 468
A17: GT6.1.4 | B17: CODE | C17: Ensaio: Limite de Plasticidade | D17: un | E17: 4 | F17: 117 | G17: 468
A18: G6.1.5 | B18: CODE | C18: Ensaio: Granulometria por Peneiramento | D18: un | E18: 4 | F18: 123.34 | G18: 493.36
A19: GT6.1.6 | B19: CODE | C19: Ensaio: Granulometria por Sedimentação | D19: un | E19: 4 | F19: 382.79 | G19: 1531.16
A20: GT6.1.7 | B20: CODE | C20: Ensaio: Compactação Proctor Normal | D20: un | E20: 4 | F20: 160.41 | G20: 641.64
A21: GT6.1.8 | B21: CODE | C21: Ensaio: Massa Especifica Real dos Grãos | D21: un | E21: 4 | F21: 104.27 | G21: 417.08
A22: GT6.1.9 | B22: CODE | C22: Ensaio: Adensamento Oedométrico | D22: un | E22: 2 | F22: 283.57 | G22: 567.14
A23: GT6.1.10 | B23: CODE | C23: Ensaio: Triaxial UU ñ consolidado ñ drenado | D23: un | E23: 2 | F23: 822.95 | G23: 1645.9
A24: GT6.1.11 | B24: CODE | C24: Ensaio: Triaxial CU consolidado ñ drenado | D24: un | E24: 2 | F24: 1129.48 | G24: 2258.96
A25: GT6.1.12.1 | B25: CODE | C25: Ensaio: Expansão colapsividade em anéis de adensamento | D25: un | E25: 2 | F25: 380.8 | G25: 761.6
A26: GT6.1.12.2 | B26: CODE | C26: Ensaio: Expansão amostra indeformada com pressão de expansão | D26: un | E26: 2 | F26: 300.93 | G26: 601.86
A27: GT6.1.13.1 | B27: CODE | C27: Ensaio: Dispersão Granulometria Comparativa | D27: un | E27: 2 | F27: 228.5 | G27: 457
A28: GT6.1.13.2 | B28: CODE | C28: Ensaio: Dispersão Crumb Test | D28: un | E28: 2 | F28: 84.66 | G28: 169.32
A29: GT6.1.14 | B29: CODE | C29: Ensaio: Infiltração | D29: un | E29: 2 | F29: 228.5 | G29: 457
A30: GT6.1.15 | B30: CODE | C30: Ensaio: Perda de Água 5 estágios | D30: un | E30: 2 | F30: 361.18 | G30: 722.36
A31: GT6.1.16.1 | B31: CODE | C31: Ensaio: Análise Quimica da Areia | D31: un | E31: 2 | F31: 459.82 | G31: 919.64
A32: GT6.1.16.2 | B32: CODE | C32: Ensaio: Mineralogia da Areia | D32: un | E32: 2 | F32: 529.2 | G32: 1058.4
A33: GT6.1.17 | B33: CODE | C33: Ensaio: Análise Petrográfica/Mineralogia | D33: un | E33: 2 | F33: 529.2 | G33: 1058.4
A34: GT6.1.18 | B34: CODE | C34: Ensaio: Abrasão “LOS ANGELES” | D34: un | E34: 2 | F34: 414.19 | G34: 828.38
A35: GT6.1.19 | B35: CODE | C35: Ensaio: Reatividade Potencial | D35: un | E35: 2 | F35: 1382.66 | G35: 2765.32
A36: GT6.1.20 | B36: CODE | C36: Ensaio: Permeabilidade Vertical de Carga Variável | D36: un | E36: 2 | F36: 649.14 | G36: 1298.28
A37: GT6.1.21 | B37: CODE | C37: Ensaio: Retirada de Amostra Indeformada | D37: un | E37: 4 | F37: 691.33 | G37: 2765.32
A38: TOTAL SERVIÇOS GEOTÉCNICOS | G38: =SUM(G8:G37) -> 71944.08
A39: NOME DO INFORMANTE: | F39: QUALIFICAÇÃO:
A41: ASSINATURA: | F41: DATA:
A43: LEGENDA:
A44: Uni - unidade de medição do insumo;
A45: Qde - Quantidade do Insumo (não pode ocorrer alteração pela Licitante)
A46: PU - Preço Unitário (composições padrão da Codevasf, já incluso o FatorK)
A47: PT - Preço Total (incluído encargos, taxas e impostos) - PT = Qde x PU

Sheet PFP2.1_FatorKa
A1: DETALHAMENTO DOS ENCARGOS SOCIAIS: Ka | J1: CODIGO:
J2: PFP-2.1
A3: NOME DA CONSULTORA:
A5: PROJETO: | F5: CONTRATANTE: | J5: BASE: Setembro/2022
A6: =PFP!A6 -> Pontes em Cristalina/GO | F6: Codevasf (Sede)
A7: Base | B7: Cod Sicro | C7: Cod1 | D7: Cod2 | E7: Categoria / Insumo | F7: K1 | G7: K2 | H7: K3 | I7: K4 | J7: Ka
A8: SICRO | B8: P8061 | C8: MO | D8: P0 | E8: Engenheiro Sênior (Coordenador) (P8061) | F8: 0.8005 | G8: =PFP3_FatorKc!$E$15 -> 0.15 | H8: =PFP3_FatorKc!$E$10 -> 0.1416 | I8: =PFP3_FatorKc!$E$14 -> 0.1 | J8: =ROUND((1+F8+G8)*(1+H8)*(1+I8),4) -> 2.4494
A9: SICRO | B9: P8067 | C9: MO | D9: P1 | E9: Engenheiro Sênior – Projetista Ponte (P8067) | F9: 0.8005 | G9: =PFP3_FatorKc!$E$15 -> 0.15 | H9: =PFP3_FatorKc!$E$10 -> 0.1416 | I9: =PFP3_FatorKc!$E$14 -> 0.1 | J9: 2.4494
A10: SICRO | B10: P8066 | C10: MO | D10: P2 | E10: Engenheiro Pleno – Hídrico/Hidrológico(P8066) | F10: 0.8005 | G10: =PFP3_FatorKc!$E$15 -> 0.15 | H10: =PFP3_FatorKc!$E$10 -> 0.1416 | I10: =PFP3_FatorKc!$E$14 -> 0.1 | J10: 2.4494
A11: SICRO | B11: P8066 | C11: MO | D11: P2 | E11: Engenheiro Pleno – Projetista Estrada (P8066) | F11: 0.8005 | G11: =PFP3_FatorKc!$E$15 -> 0.15 | H11: =PFP3_FatorKc!$E$10 -> 0.1416 | I11: =PFP3_FatorKc!$E$14 -> 0.1 | J11: 2.4494
A12: SICRO | B12: P8058 | C12: MO | D12: P2 | E12: Engenheiro Pleno - Ambiental (P8058) | F12: 0.8008 | G12: =PFP3_FatorKc!$E$15 -> 0.15 | H12: =PFP3_FatorKc!$E$10 -> 0.1416 | I12: =PFP3_FatorKc!$E$14 -> 0.1 | J12: 2.4497
A13: SICRO | B13: P8135 | C13: MO | D13: A1 | E13: Administrativo (Secretariado) (P8135) | F13: 0.8031 | G13: =PFP3_FatorKc!$E$15 -> 0.15 | H13: =PFP3_FatorKc!$E$10 -> 0.1416 | I13: =PFP3_FatorKc!$E$14 -> 0.1 | J13: 2.4526
A15: NOME DO INFORMANTE: | J15: QUALIFICAÇÃO
A17: ASSINATURA: | J17: DATA:
A19: OBSERVAÇÃO:
A20: Alocar os Insumos MO, com respectivo FatorK, dentro da categoria de vínculo contratual (com ou sem) de cada tipo de profissional
A21: K1 - Encargos Sociais - Valores obtidos do Relatório de Consolidação dos Custos de Mão de obra do SICRO (Tabela 1 - Consolidação dos custos de mão de obra - Tabela de Preços de Consultoria - mês de referência: abril de 2022)
A23: K2 - Custos da Administração Central
A24: K3 - Despesas Fiscais
A25: K4 - Remuneração da empresa (LUCRO)
A26: Ka - Taxa de Ressarcimento de Despesas e Encargos sobre a Mão de Obra COM VINCULO (incide apenas no Insumo Codigo M.O.)
A27: Ka = (1 + K1 + K2) x (1 + K3) x (1 + K4)

Sheet PFP2.2_FatorKb
A1: DETALHAMENTO DOS ENCARGOS SOCIAIS: Kb | F1: CODIGO:
F2: PFP-3
A3: NOME DA CONSULTORA:
A5: PROJETO: | C5: CONTRATANTE: | F5: =PFP2.1_FatorKa!J5 -> BASE: Setembro/2022
A6: =PFP!A6 -> Pontes em Cristalina/GO | C6: =PFP!F6 -> Codevasf (Sede)
A7: DISCRIMINAÇÃO | E7: VALORES
E8: % | F8: R$
A9: A | B9: ENCARGOS SOCIAIS BÁSICOS | E9: =ROUND(SUM(E10:E18),4) -> 0.2 | F9: =ROUND(E9*PFP!$H$19,2) -> 26317.17
A10: A1 | B10: Seconci | E10: 0 | F10: =ROUND(E10*PFP!$H$19,2) -> 0
A11: A2 | B11: INSS | E11: 0.2 | F11: =ROUND(E11*PFP!$H$19,2) -> 26317.17
A12: A3 | B12: FGTS | E12: 0 | F12: =ROUND(E12*PFP!$H$19,2) -> 0
A13: A4 | B13: Incra | E13: 0 | F13: =ROUND(E13*PFP!$H$19,2) -> 0
A14: A5 | B14: Salário Educação | E14: 0 | F14: =ROUND(E14*PFP!$H$19,2) -> 0
A15: A6 | B15: Sebrae | E15: 0 | F15: =ROUND(E15*PFP!$H$19,2) -> 0
A16: A7 | B16: Seguro contra acidente | E16: 0 | F16: =ROUND(E16*PFP!$H$19,2) -> 0
A17: A8 | B17: Senai | E17: 0 | F17: =ROUND(E17*PFP!$H$19,2) -> 0
A18: A9 | B18: Sesi | E18: 0 | F18: =ROUND(E18*PFP!$H$19,2) -> 0
A19: B | B19: ENCARGOS SOCIAIS QUE RECEBEM INCIDÊNCIA DE "A" | E19: =ROUND(SUM(E20:E26),4) -> 0 | F19: =ROUND(E19*PFP!$H$19,2) -> 0
A20: B1 | B20: 13º Salário | E20: 0 | F20: =ROUND(E20*PFP!$H$19,2) -> 0
A21: B2 | B21: Auxilio Enfermidade | E21: 0 | F21: =ROUND(E21*PFP!$H$19,2) -> 0
A22: B3 | B22: Licença Paternidade | E22: 0 | F22: =ROUND(E22*PFP!$H$19,2) -> 0
A23: B4 | B23: Faltas Justificadas | E23: 0 | F23: =ROUND(E23*PFP!$H$19,2) -> 0
A24: B5 | B24: Auxílio Acidente de Trabalho | E24: 0 | F24: =ROUND(E24*PFP!$H$19,2) -> 0
A25: B6 | B25: Férias Gozadas | E25: 0 | F25: =ROUND(E25*PFP!$H$19,2) -> 0
A26: B7 | B26: Salário Maternidade | E26: 0 | F26: =ROUND(E26*PFP!$H$19,2) -> 0
A27: C | B27: ENCARGOS SOCIAIS QUE NÃO RECEBEM INCIDÊNCIA DE "A" | E27: =ROUND(SUM(E28:E32),4) -> 0 | F27: =ROUND(E27*PFP!$H$19,2) -> 0
A28: C1 | B28: Aviso Prévio Indenizado | E28: 0 | F28: =ROUND(E28*PFP!$H$19,2) -> 0
A29: C2 | B29: Aviso Prévio Trabalhado | E29: 0 | F29: =ROUND(E29*PFP!$H$19,2) -> 0
A30: C3 | B30: Férias Indenizadas | E30: 0 | F30: =ROUND(E30*PFP!$H$19,2) -> 0
A31: C4 | B31: Depósito Rescisão Sem Justa Causa | E31: 0 | F31: =ROUND(E31*PFP!$H$19,2) -> 0
A32: C5 | B32: Indenização Adicional | E32: 0 | F32: =ROUND(E32*PFP!$H$19,2) -> 0
A33: D | B33: REINCIDÊNCIAS | E33: =ROUND(SUM(E34:E35),4) -> 0 | F33: =ROUND(E33*PFP!$H$19,2) -> 0
A34: D1 | B34: Reincidência de "A" sobre "B" | E34: =ROUND(E9*E19,4) -> 0 | F34: =ROUND(E34*PFP!$H$19,2) -> 0
A35: D2 | B35: Reincidência de "A" sobre Aviso Prévio Trabalhado e reincidência do FGTS sobre Aviso Prévio Indenizado | E35: =ROUND(E9*E29,4)+ROUND(E28*E12,4) -> 0 | F35: =ROUND(E35*PFP!$H$19,2) -> 0
A36: K1 | B36: ENCARGOS SOCIAIS | E36: =ROUND(E9+E19+E27+E33,4) -> 0.2 | F36: =ROUND(E36*PFP!$H$19,2) -> 26317.17
A37: Kb | B37: TAXA DE RESSARCIMENTO DE DESPESAS E ENCARGOS SOBRE MO SV | E37: =ROUND((1+E36+PFP3_FatorKc!E15)*(1+PFP3_FatorKc!E14)*(1+PFP3_FatorKc!E10),4) -> 1.6953
A38: NOME DO INFORMANTE: | E38: QUALIFICAÇÃO
A40: ASSINATURA: | E40: DATA:
A42: OBSERVAÇÃO:
A43: 1 - DISCRIMINAR OS ENCARGOS SOCIAIS COM SEUS RESPECTIVOS PERCENTUAS TOTALIZANDO OS MESMOS.
A44: 2 - APLICAR O % TOTAL P/ CALCULAR OS E. SOCIAIS INCIDENTES NA MÃO-DE-OBRA SEM VÍNCULO PERMANENTE
A45: Kb - Taxa de Ressarcimento de Despesas e Encargos sobre a Mão de Obra SEM VINCULO (incide apenas no Insumo Codigo M.O.)
A46: Kb = (1 + K1 + K2) x (1 + K3) x (1 + K4)

Sheet PFP3_FatorKc
A1: DESPESAS FISCAIS E CUSTOS DIVERSOS: Kc | F1: CODIGO:
F2: PFP-3
A3: NOME DA CONSULTORA:
A5: PROJETO: | C5: CONTRATANTE: | F5: =PFP!J5 -> BASE: Setembro/2022
A6: =PFP!A6 -> Pontes em Cristalina/GO | C6: =PFP!F6 -> Codevasf (Sede)
A7: DISCRIMINAÇÃO 1 | D7: VALORES
D8: % preço | E8: % custo | F8: R$
A9: K4 | B9: DESPESAS FISCAIS | D9: K' (%)2 | E9: K (%)3
D10: =ROUND(D11+D12+D13,4) -> 0.124 | E10: =ROUND(E11+E12+E13,4) -> 0.1416
A11: 1 | B11: ISS | D11: 0.05 | E11: =ROUND((1/(1-$D$10))*D11,4) -> 0.0571
A12: 2 | B12: PIS - aliquota efetiva com percentual-desconto de 20% | D12: =ROUND(1.65%*0.8,4) -> 0.0132 | E12: =ROUND((1/(1-$D$10))*D12,4) -> 0.0151
A13: 3 | B13: COFINS - aliquota efetiva com percentual-desconto de 20% | D13: =ROUND(7.6%*0.8,4) -> 0.0608 | E13: =ROUND((1/(1-$D$10))*D13,4) -> 0.0694
A14: K3 | B14: REMUNERAÇÃO DA EMPRESA (LUCRO) | E14: 0.1
A15: K2 | B15: CUSTOS DA ADMINISTRAÇÃO CENTRAL | E15: =ROUND(SUM(E16:E18),4) -> 0.15
A16: 4 | B16: Custos da administração central da empresa (diretoria, pessoal técnico de apoio e pessoal administrativo não diretamente vinculado à prestação dos serviços) | E16: 0.1
A17: 5 | B17: Outras despesas que afetam o custo de produção como treinamento, biblioteca, programa de qualidade, programa de benefícios, auditoria interna e externa | E17: 0.03
A18: 6 | B18: Despesas fixas e variaveis com patrimônio, aluguéis, comunicação, manutenção e transporte não diretamente relacionados com o custo direto dos serviços | E18: 0.02
A19: Kc | B19: TAXA RESSARCIMENTO DE DESPESAS SOBRE CUSTOS DIVERSOS | E19: =ROUND((1+E14)*(1+E10),4) -> 1.2558
A20: NOME DO INFORMANTE: | E20: QUALIFICAÇÃO:
A22: ASSINATURA: | E22: DATA:
A24: Observação:
A25: 1 - RELACIONAR OS CUSTOS DE ADMINISTRAÇÃO COM RESPECTIVOS PERCENTUAIS INCIDENTES NA MÃO -DE-OBRA
A26: 1 - DISCRIMINAR OS TRIBUTOS QUE INCIDEM SOBRE OS CUSTOS DA PRESTAÇÃO DOS SERVIÇOS
A27: 2 - K4 = INDICAR % DE CADA TRIBUTO E A SOMA DOS MESMOS
A28: 3 - PIS e COFINS, Regime de Incidencia Acumulativa ou em Regime de Incidencia Não Acumulativa de acordo com a forma de apuração do lucro no IRPJ. APRESENTAR COMPROVANTES de aproveitamento de créditos tributários dos últimos 12 meses em caso de aplicação de "percentual de desconto".
A29: 4 - AS DESPESAS FISCAIS (K4) INCIDEM SOBRE O TOTAL DA FATURA E NÃO SOBRE OS CUSTOS INCORRIDOS,
A30: DEVENDO SER CALCULADO O K4' APLICANDO-SE A SEGUINTE FÓRMULA:
A31: K4' = { [ 1 / ( 1 - K4) ] - 1 } x 100
A32: =CONCATENATE(" K4' = { [ 1 / ( 1 - ",D10," ) ] - 1 } x 100") -> K4' = { [ 1 / ( 1 - 0,124 ) ] - 1 } x 100
A33: Kc - Taxa de Ressarcimento de Despesas sobre Custos Diversos (incide sobre os Insumos Codigo DP e ME)
A34: Kc = (1 + K3) x (1 + K4)
A35: K2 - Incide sobre o Custo Total (CT) da Mão de Obra (MO)
A36: K3 - Incide sobre o Custo Total (CT) Mão de Obra com encargos (MO x Ka ou Kb), demais Custos (DP e EQ), e Custos da Administração Central (K2)
A37: K4 - Incide sobre o Custo Total (CT) Mão de Obra com encargos (MO x Ka ou Kb), demais Custos (DP e EQ), e Custos da Administração Central (K2) e Lucro (K3)
A1048576: ISS- O ISS informado na proposta da licitante deve corresponder ao seu domicílio fiscal.

Sheet CRO1_Ins-Pro
A1: INSUMOS POR ETAPA/PRODUTO | G1: CODIGO:
G2: CRO-1
A3: Cod. | B3: Categoria / Insumo | C3: Uni | D3: Qde | E3: CUD | F3: PU | G3: FatorK | H3: 1. EVTEA | I3: 2. Esc. Alt. | J3: 3. PB
A4: SICRO | B4: Engenheiro Sênior (Coordenador) (P8061) | C4: mês | D4: =SUM(H4:J4) -> 4 | E4: =PFP!G8 -> 16848.3 | F4: =ROUND(E4*G4,2) -> 41268.23 | G4: =PFP!I8 -> 2.4494 | H4: 1 | I4: 1 | J4: 2
A5: SICRO | B5: Engenheiro Sênior – Projetista Ponte (P8067) | C5: mês | D5: 1.5 | E5: =PFP!G9 -> 14226.86 | F5: 34847.27 | G5: =PFP!I9 -> 2.4494 | H5: 0 | I5: 0 | J5: 1.5
A6: SICRO | B6: Engenheiro Pleno – Hídrico/Hidrológico(P8066) | C6: mês | D6: 1 | E6: =PFP!G10 -> 10864.39 | F6: 26611.24 | G6: =PFP!I10 -> 2.4494 | H6: 0 | I6: 0 | J6: 1
A7: SICRO | B7: Engenheiro Pleno – Projetista Estrada (P8066) | C7: mês | D7: 0.5 | E7: =PFP!G11 -> 10864.39 | F7: 26611.24 | G7: =PFP!I11 -> 2.4494 | H7: 0 | I7: 0 | J7: 0.5
A8: SICRO | B8: Engenheiro Pleno – Ambiental (P8058) | C8: mês | D8: 1 | E8: =PFP!G12 -> 10998.07 | F8: 26941.97 | G8: =PFP!I12 -> 2.4497 | H8: 1 | I8: 0 | J8: 0
A9: SICRO | B9: Administrativo (Secretariado) (P8135) | C9: mês | D9: 4 | E9: =PFP!G13 -> 2189.27 | F9: 5369.4 | G9: =PFP!I13 -> 2.4526 | H9: 1 | I9: 1 | J9: 2
A10: CODE | B10: Diárias | C10: dia | D10: 21 | E10: =PFP!G14 -> 160 | F10: 200.93 | G10: =PFP!I14 -> 1.2558 | H10: 15 | I10: 0 | J10: 6
A11: PROP | B11: Pick-up Cab. Dupla 2.8 4x4 Diesel | C11: dia | D11: 10 | E11: =PFP!G15 -> 196.18 | F11: 246.36 | G11: =PFP!I15 -> 1.2558 | H11: 6 | I11: 4 | J11: 0
A12: CODE | B12: Relatório Final | C12: un | D12: 1 | E12: =PFP!G16 -> 1478.8 | F12: 1857.08 | G12: =PFP!I16 -> 1.2558 | H12: 0 | I12: 0 | J12: 1
A13: CODE | B13: Total Serviços Cartográficos | C13: un | D13: 1 | E13: =PFP!G17 -> - | F13: =PFP!H17 -> 38751.43 | G13: - | H13: 0 | I13: 0 | J13: 1
A14: CODE | B14: Total Serviços Geotécnicos | C14: un | D14: 1 | E14: =PFP!G18 -> - | F14: =PFP!H18 -> 187279.58 | G14: - | H14: 0 | I14: 0 | J14: 1
A15: TOTAL | B15: VALOR POR PRODUTO | C15: R$ | D15: =SUM(H15:J15) -> 540251.475 | H15: =SUM(F4:F12*$H4:H$12) -> 78071.71 | I15: =SUM(I4:I12*$F$4:$F$12) -> 47623.07 | J15: =SUM(J4:J14*$F$4:$F$14) -> 414556.695
C16: % | D16: =SUM(H16:J16) -> 1 | H16: =ROUND(H15/$D$15,5) -> 0.14451 | I16: =ROUND(I15/$D$15,5) -> 0.08815 | J16: =ROUND(J15/$D$15,5) -> 0.76734
A17: OBSERVAÇÃO:
A18: P - Profissionais nível superior nas áreas de Engenharia, Química, Arquitetura, Agronomia e Veterinária, conforme disposições da Lei 4.950-A/66
A19: S - Profissionais de nível superior nas demais áreas de atuação, incluindo Arqueólogo, Biólogo, Geógrafo e Socioólogo
A20: T - Profissionais de nível médio técnico nas diversas áreas de atuação
A21: A - Profissionais de nível médio de apoio técnico-administrativo

Sheet CRO2_Ins-Mes
A1: CRONOGRAMA SIMPLIFICADO | D1: Mês
A2: Produtos | B2: Uni | C2: Qde | D2: 1 | E2: 2 | F2: 3 | G2: 4
A3: Estudo de Viabilidade Técnica, Econômica e Ambiental | B3: mês | C3: =SUM(D3:G3) -> 1 | D3: 1 | E3: 0 | F3: 0 | G3: 0
A4: Escolha das Alternativas | B4: mês | C4: =SUM(D4:G4) -> 1 | D4: 0 | E4: 1 | F4: 0 | G4: 0
A5: Estudos de Campo e Projeto Básico | B5: mês | C5: =SUM(D5:G5) -> 2 | D5: 0 | E5: 0 | F5: 1 | G5: 1
